Workbook

Sheet FabaoConfig
A1: ID | B1: ItemID | C1: name | D1: Type | E1: magicAttribute | F1: model | G1: fragmentID | I1: ShuxingIDs | J1: ShuxingPara | K1: SkillGroupID
A2: int | B2: int | C2: string | D2: int | E2: int | F2: string | G2: int | I2: int[] | J2: int[] | K2: int
P3: 输入等级 | Q3: 1
B4: 法宝对应道具ID | C4: 法宝名称 | D4: 法宝类型 1攻击型 2防御型 | E4: 法宝类型 1=金 2=木 4=水 8=火 16=土 | F4: 模型名称 | G4: 法宝对应碎片道具ID | H4: 法宝默认星级 | I4: 法宝基础属性类型 | J4: 法宝基础属性倍率 | K4: 法宝技能ID组 | L4: 生命 | M4: 防御 | N4: 攻击 | P4: 生命 | Q4: 防御 | R4: 攻击
A5: 10001 | B5: 10001 | C5: 神龙鼎 | D5: 1 | E5: 1 | F5: fb_3101 | G5: 11001 | H5: 1 | I5: =_xlfn.TEXTJOIN(";",1,IF(L5="","",1),IF(M5="","",2),IF(N5="","",3)) -> 2;3 | J5: =_xlfn.TEXTJOIN(";",1,L5:N5) -> 50;50 | K5: 3101 | M5: 50 | N5: 50 | P5: =IF(L5="","",ROUND(VLOOKUP($Q$3,FabaoPowerupConfig!$A:$E,3,FALSE)*L5/100,0)) ->  | Q5: =IF(M5="","",ROUND(VLOOKUP($Q$3,FabaoPowerupConfig!$A:$E,4,FALSE)*M5/100,0)) -> 8 | R5: =IF(N5="","",ROUND(VLOOKUP($Q$3,FabaoPowerupConfig!$A:$E,5,FALSE)*N5/100,0)) -> 19
A6: 10002 | B6: 10002 | C6: 噬空齿刃 | D6: 1 | E6: 1 | F6: fb_wulonglun | G6: 11002 | H6: 1 | I6: =_xlfn.TEXTJOIN(";",1,IF(L6="","",1),IF(M6="","",2),IF(N6="","",3)) -> 1;3 | J6: =_xlfn.TEXTJOIN(";",1,L6:N6) -> 50;50 | K6: 3102 | L6: 50 | N6: 50 | P6: =IF(L6="","",ROUND(VLOOKUP($Q$3,FabaoPowerupConfig!$A:$E,3,FALSE)*L6/100,0)) -> 113 | Q6: =IF(M6="","",ROUND(VLOOKUP($Q$3,FabaoPowerupConfig!$A:$E,4,FALSE)*M6/100,0)) ->  | R6: =IF(N6="","",ROUND(VLOOKUP($Q$3,FabaoPowerupConfig!$A:$E,5,FALSE)*N6/100,0)) -> 19
A7: 10003 | B7: 10003 | C7: 翡翠葫芦 | D7: 1 | E7: 2 | F7: fb_feicuihulu | G7: 11003 | H7: 1 | I7: 1;2 | J7: 75;25 | K7: 3201 | L7: 75 | M7: 25 | P7: =IF(L7="","",ROUND(VLOOKUP($Q$3,FabaoPowerupConfig!$A:$E,3,FALSE)*L7/100,0)) -> 169 | Q7: =IF(M7="","",ROUND(VLOOKUP($Q$3,FabaoPowerupConfig!$A:$E,4,FALSE)*M7/100,0)) -> 4 | R7: =IF(N7="","",ROUND(VLOOKUP($Q$3,FabaoPowerupConfig!$A:$E,5,FALSE)*N7/100,0)) -> 
A8: 10004 | B8: 10004 | C8: 混沌珠 | D8: 1 | E8: 2 | F8: fb_3202 | G8: 11004 | H8: 1 | I8: 1;3 | J8: 25;75 | K8: 3202 | L8: 25 | N8: 75 | P8: =IF(L8="","",ROUND(VLOOKUP($Q$3,FabaoPowerupConfig!$A:$E,3,FALSE)*L8/100,0)) -> 56 | Q8: =IF(M8="","",ROUND(VLOOKUP($Q$3,FabaoPowerupConfig!$A:$E,4,FALSE)*M8/100,0)) ->  | R8: =IF(N8="","",ROUND(VLOOKUP($Q$3,FabaoPowerupConfig!$A:$E,5,FALSE)*N8/100,0)) -> 28
A9: 10005 | B9: 10005 | C9: 绝脉瓶 | D9: 1 | E9: 2 | F9: fb_3203 | G9: 11005 | H9: 1 | I9: 2;3 | J9: 50;50 | K9: 3203 | M9: 50 | N9: 50 | P9: =IF(L9="","",ROUND(VLOOKUP($Q$3,FabaoPowerupConfig!$A:$E,3,FALSE)*L9/100,0)) ->  | Q9: =IF(M9="","",ROUND(VLOOKUP($Q$3,FabaoPowerupConfig!$A:$E,4,FALSE)*M9/100,0)) -> 8 | R9: =IF(N9="","",ROUND(VLOOKUP($Q$3,FabaoPowerupConfig!$A:$E,5,FALSE)*N9/100,0)) -> 19
A10: 10006 | B10: 10006 | C10: 九幽镇魂瓶 | D10: 1 | E10: 4 | F10: fb_BossPing | G10: 11006 | H10: 1 | I10: 1;3 | J10: 50;50 | K10: 3301 | L10: 50 | N10: 50 | P10: =IF(L10="","",ROUND(VLOOKUP($Q$3,FabaoPowerupConfig!$A:$E,3,FALSE)*L10/100,0)) -> 113 | Q10: =IF(M10="","",ROUND(VLOOKUP($Q$3,FabaoPowerupConfig!$A:$E,4,FALSE)*M10/100,0)) ->  | R10: =IF(N10="","",ROUND(VLOOKUP($Q$3,FabaoPowerupConfig!$A:$E,5,FALSE)*N10/100,0)) -> 19
A11: 10007 | B11: 10007 | C11: 玉莲守心灯 | D11: 1 | E11: 4 | F11: fb_3302 | G11: 11007 | H11: 1 | I11: 1;2 | J11: 75;25 | K11: 3302 | L11: 75 | M11: 25 | P11: =IF(L11="","",ROUND(VLOOKUP($Q$3,FabaoPowerupConfig!$A:$E,3,FALSE)*L11/100,0)) -> 169 | Q11: =IF(M11="","",ROUND(VLOOKUP($Q$3,FabaoPowerupConfig!$A:$E,4,FALSE)*M11/100,0)) -> 4 | R11: =IF(N11="","",ROUND(VLOOKUP($Q$3,FabaoPowerupConfig!$A:$E,5,FALSE)*N11/100,0)) -> 
A12: 10008 | B12: 10008 | C12: 融灵塔 | D12: 1 | E12: 8 | F12: fb_3401 | G12: 11008 | H12: 1 | I12: 2;3 | J12: 75;25 | K12: 3401 | M12: 75 | N12: 25 | P12: =IF(L12="","",ROUND(VLOOKUP($Q$3,FabaoPowerupConfig!$A:$E,3,FALSE)*L12/100,0)) ->  | Q12: =IF(M12="","",ROUND(VLOOKUP($Q$3,FabaoPowerupConfig!$A:$E,4,FALSE)*M12/100,0)) -> 11 | R12: =IF(N12="","",ROUND(VLOOKUP($Q$3,FabaoPowerupConfig!$A:$E,5,FALSE)*N12/100,0)) -> 9
B13: 10009 | C13: 禁元珠 | D13: 1 | E13: 8 | F13: fb_BossPing | G13: 11009 | H13: 1 | K13: 3402 | P13: =IF(L13="","",ROUND(VLOOKUP($Q$3,FabaoPowerupConfig!$A:$E,3,FALSE)*L13/100,0)) ->  | Q13: =IF(M13="","",ROUND(VLOOKUP($Q$3,FabaoPowerupConfig!$A:$E,4,FALSE)*M13/100,0)) ->  | R13: =IF(N13="","",ROUND(VLOOKUP($Q$3,FabaoPowerupConfig!$A:$E,5,FALSE)*N13/100,0)) -> 
A14: 10010 | B14: 10010 | C14: 玄龟盾 | D14: 1 | E14: 16 | F14: fb_xuanguidun | G14: 11010 | H14: 1 | I14: 1;2 | J14: 25;75 | K14: 3501 | L14: 25 | M14: 75 | P14: =IF(L14="","",ROUND(VLOOKUP($Q$3,FabaoPowerupConfig!$A:$E,3,FALSE)*L14/100,0)) -> 56 | Q14: =IF(M14="","",ROUND(VLOOKUP($Q$3,FabaoPowerupConfig!$A:$E,4,FALSE)*M14/100,0)) -> 11 | R14: =IF(N14="","",ROUND(VLOOKUP($Q$3,FabaoPowerupConfig!$A:$E,5,FALSE)*N14/100,0)) -> 
B15: 10011 | C15: 天殇血刃剑 | D15: 1 | E15: 16 | F15: fb_ding1 | G15: 11011 | H15: 1 | K15: 3502 | P15: =IF(L15="","",ROUND(VLOOKUP($Q$3,FabaoPowerupConfig!$A:$E,3,FALSE)*L15/100,0)) ->  | Q15: =IF(M15="","",ROUND(VLOOKUP($Q$3,FabaoPowerupConfig!$A:$E,4,FALSE)*M15/100,0)) ->  | R15: =IF(N15="","",ROUND(VLOOKUP($Q$3,FabaoPowerupConfig!$A:$E,5,FALSE)*N15/100,0)) -> 

Sheet FabaoPowerupConfig
A1: ID | B1: Power | C1: HP | D1: DEF | E1: ATK | G1: NeedLv | H1: PowerupItemIDs | I1: PowerupItemCosts | N1: PromotePieceNum | O1: SkillLevel
A2: int | B2: int | C2: float | D2: float | E2: float | G2: int | H2: int[] | I2: int[] | N2: int[] | O2: int
A4: ID序列 | B4: 法宝的基础强度成长 | C4: 法宝的生命标准成长1 | D4: 法宝的防御标准成长2 | E4: 法宝的攻击标准成长3 | F4: 实力等级 | G4: 升级所需修为等级 | H4: 强化所需道具ID | I4: 强化所需道具数量 | J4: 道具1 | K4: 数量1 | L4: 道具2 | M4: 数量2 | N4: 突破所需对应碎片数量 | O4: 对应的技能等级 | P4: 1.26
A5: 1 | B5: 100 | C5: =ROUND(VLOOKUP(F5,[1]主表!$A:$B,2,FALSE)*[1]主表!$D$1*[1]升级!$AA$4*(1+VLOOKUP(F5,[1]主表!$A:$F,6,FALSE)),2) -> 225 | D5: =ROUND(VLOOKUP(F5,[1]主表!$A:$B,2,FALSE)*[1]主表!$D$1*[1]升级!$X$4,2) -> 15 | E5: =ROUND(VLOOKUP(F5,[1]主表!$A:$B,2,FALSE)*[1]主表!$D$1*[1]升级!$U$4,2) -> 37.5 | F5: 1 | G5: 11 | H5: =_xlfn.TEXTJOIN(";",1,J5,L5) -> 1001;1006 | I5: =_xlfn.TEXTJOIN(";",1,K5,M5) -> 6000;500 | J5: 1001 | K5: =ROUND(40*VLOOKUP(G5,[2]ResourceLevelConfig!$A:$H,3,FALSE)/4,0) -> 6000 | L5: 1006 | M5: =ROUND(100*VLOOKUP(G5,[2]ResourceLevelConfig!$A:$H,8,FALSE)/4,0) -> 500 | N5: -1 | O5: 1
A6: 2 | B6: =ROUND(B5*P$4,0) -> 126 | C6: =ROUND(VLOOKUP(F6,[1]主表!$A:$B,2,FALSE)*[1]主表!$D$1*[1]升级!$AA$4*(1+VLOOKUP(F6,[1]主表!$A:$F,6,FALSE)),2) -> 265.01 | D6: =ROUND(VLOOKUP(F6,[1]主表!$A:$B,2,FALSE)*[1]主表!$D$1*[1]升级!$X$4,2) -> 17.15 | E6: =ROUND(VLOOKUP(F6,[1]主表!$A:$B,2,FALSE)*[1]主表!$D$1*[1]升级!$U$4,2) -> 42.88 | F6: 10 | G6: 21 | H6: =_xlfn.TEXTJOIN(";",1,J6,L6) -> 1001;1006 | I6: =_xlfn.TEXTJOIN(";",1,K6,M6) -> 9000;750 | J6: 1001 | K6: =ROUND(40*VLOOKUP(G6,[2]ResourceLevelConfig!$A:$H,3,FALSE)/4,0) -> 9000 | L6: 1006 | M6: =ROUND(100*VLOOKUP(G6,[2]ResourceLevelConfig!$A:$H,8,FALSE)/4,0) -> 750 | N6: -1 | O6: 1
A7: 3 | B7: =ROUND(B6*P$4,0) -> 159 | C7: =ROUND(VLOOKUP(F7,[1]主表!$A:$B,2,FALSE)*[1]主表!$D$1*[1]升级!$AA$4*(1+VLOOKUP(F7,[1]主表!$A:$F,6,FALSE)),2) -> 344.13 | D7: =ROUND(VLOOKUP(F7,[1]主表!$A:$B,2,FALSE)*[1]主表!$D$1*[1]升级!$X$4,2) -> 21.57 | E7: =ROUND(VLOOKUP(F7,[1]主表!$A:$B,2,FALSE)*[1]主表!$D$1*[1]升级!$U$4,2) -> 53.93 | F7: 20 | G7: 31 | H7: 1001;1006 | I7: 12000;1000 | J7: 1001 | K7: =ROUND(40*VLOOKUP(G7,[2]ResourceLevelConfig!$A:$H,3,FALSE)/4,0) -> 12000 | L7: 1006 | M7: =ROUND(100*VLOOKUP(G7,[2]ResourceLevelConfig!$A:$H,8,FALSE)/4,0) -> 1000 | N7: -1 | O7: 1 | V7: 1 | W7: 1
A8: 4 | B8: 200 | C8: =ROUND(VLOOKUP(F8,[1]主表!$A:$B,2,FALSE)*[1]主表!$D$1*[1]升级!$AA$4*(1+VLOOKUP(F8,[1]主表!$A:$F,6,FALSE)),2) -> 446.43 | D8: =ROUND(VLOOKUP(F8,[1]主表!$A:$B,2,FALSE)*[1]主表!$D$1*[1]升级!$X$4,2) -> 27.13 | E8: =ROUND(VLOOKUP(F8,[1]主表!$A:$B,2,FALSE)*[1]主表!$D$1*[1]升级!$U$4,2) -> 67.83 | F8: 30 | G8: 41 | H8: 1001;1006 | I8: 15000;1250 | J8: 1001 | K8: =ROUND(40*VLOOKUP(G8,[2]ResourceLevelConfig!$A:$H,3,FALSE)/4,0) -> 15000 | L8: 1006 | M8: =ROUND(100*VLOOKUP(G8,[2]ResourceLevelConfig!$A:$H,8,FALSE)/4,0) -> 1250 | N8: -1 | O8: 1 | V8: 2 | W8: 6
A9: 5 | B9: 252 | C9: =ROUND(VLOOKUP(F9,[1]主表!$A:$B,2,FALSE)*[1]主表!$D$1*[1]升级!$AA$4*(1+VLOOKUP(F9,[1]主表!$A:$F,6,FALSE)),2) -> 789.01 | D9: =ROUND(VLOOKUP(F9,[1]主表!$A:$B,2,FALSE)*[1]主表!$D$1*[1]升级!$X$4,2) -> 46.53 | E9: =ROUND(VLOOKUP(F9,[1]主表!$A:$B,2,FALSE)*[1]主表!$D$1*[1]升级!$U$4,2) -> 116.33 | F9: 40 | G9: 51 | H9: 1001;1006 | I9: 18280;1500 | J9: 1001 | K9: =ROUND(40*VLOOKUP(G9,[2]ResourceLevelConfig!$A:$H,3,FALSE)/4,0) -> 18280 | L9: 1006 | M9: =ROUND(100*VLOOKUP(G9,[2]ResourceLevelConfig!$A:$H,8,FALSE)/4,0) -> 1500 | N9: -1 | O9: 1 | V9: 3 | W9: 10
A10: 6 | B10: 318 | C10: =ROUND(VLOOKUP(F10,[1]主表!$A:$B,2,FALSE)*[1]主表!$D$1*[1]升级!$AA$4*(1+VLOOKUP(F10,[1]主表!$A:$F,6,FALSE)),2) -> 1021.72 | D10: =ROUND(VLOOKUP(F10,[1]主表!$A:$B,2,FALSE)*[1]主表!$D$1*[1]升级!$X$4,2) -> 58.52 | E10: =ROUND(VLOOKUP(F10,[1]主表!$A:$B,2,FALSE)*[1]主表!$D$1*[1]升级!$U$4,2) -> 146.31 | F10: 50 | G10: 61 | H10: 1001;1006 | I10: 22290;1750 | J10: 1001 | K10: =ROUND(40*VLOOKUP(G10,[2]ResourceLevelConfig!$A:$H,3,FALSE)/4,0) -> 22290 | L10: 1006 | M10: =ROUND(100*VLOOKUP(G10,[2]ResourceLevelConfig!$A:$H,8,FALSE)/4,0) -> 1750 | N10: 10 | O10: 1 | V10: 4 | W10: 15
A11: 7 | B11: 401 | C11: =ROUND(VLOOKUP(F11,[1]主表!$A:$B,2,FALSE)*[1]主表!$D$1*[1]升级!$AA$4*(1+VLOOKUP(F11,[1]主表!$A:$F,6,FALSE)),2) -> 1321.97 | D11: =ROUND(VLOOKUP(F11,[1]主表!$A:$B,2,FALSE)*[1]主表!$D$1*[1]升级!$X$4,2) -> 73.61 | E11: =ROUND(VLOOKUP(F11,[1]主表!$A:$B,2,FALSE)*[1]主表!$D$1*[1]升级!$U$4,2) -> 184.02 | F11: 60 | G11: 71 | H11: 1001;1006 | I11: 27150;2125 | J11: 1001 | K11: =ROUND(40*VLOOKUP(G11,[2]ResourceLevelConfig!$A:$H,3,FALSE)/4,0) -> 27150 | L11: 1006 | M11: =ROUND(100*VLOOKUP(G11,[2]ResourceLevelConfig!$A:$H,8,FALSE)/4,0) -> 2125 | N11: -1 | O11: =O5+1 -> 2 | V11: 5 | W11: 20
A12: 8 | B12: 505 | C12: =ROUND(VLOOKUP(F12,[1]主表!$A:$B,2,FALSE)*[1]主表!$D$1*[1]升级!$AA$4*(1+VLOOKUP(F12,[1]主表!$A:$F,6,FALSE)),2) -> 2330.63 | D12: =ROUND(VLOOKUP(F12,[1]主表!$A:$B,2,FALSE)*[1]主表!$D$1*[1]升级!$X$4,2) -> 126.24 | E12: =ROUND(VLOOKUP(F12,[1]主表!$A:$B,2,FALSE)*[1]主表!$D$1*[1]升级!$U$4,2) -> 315.61 | F12: 70 | G12: 81 | H12: 1001;1006 | I12: 33090;2625 | J12: 1001 | K12: =ROUND(40*VLOOKUP(G12,[2]ResourceLevelConfig!$A:$H,3,FALSE)/4,0) -> 33090 | L12: 1006 | M12: =ROUND(100*VLOOKUP(G12,[2]ResourceLevelConfig!$A:$H,8,FALSE)/4,0) -> 2625 | N12: -1 | O12: =O6+1 -> 2 | V12: 6 | W12: 25
A13: 9 | B13: 636 | C13: =ROUND(VLOOKUP(F13,[1]主表!$A:$B,2,FALSE)*[1]主表!$D$1*[1]升级!$AA$4*(1+VLOOKUP(F13,[1]主表!$A:$F,6,FALSE)),2) -> 3010.95 | D13: =ROUND(VLOOKUP(F13,[1]主表!$A:$B,2,FALSE)*[1]主表!$D$1*[1]升级!$X$4,2) -> 158.78 | E13: =ROUND(VLOOKUP(F13,[1]主表!$A:$B,2,FALSE)*[1]主表!$D$1*[1]升级!$U$4,2) -> 396.95 | F13: 80 | G13: 91 | H13: 1001;1006 | I13: 40350;3125 | J13: 1001 | K13: =ROUND(40*VLOOKUP(G13,[2]ResourceLevelConfig!$A:$H,3,FALSE)/4,0) -> 40350 | L13: 1006 | M13: =ROUND(100*VLOOKUP(G13,[2]ResourceLevelConfig!$A:$H,8,FALSE)/4,0) -> 3125 | N13: -1 | O13: 2
A14: 10 | B14: 801 | C14: =ROUND(VLOOKUP(F14,[1]主表!$A:$B,2,FALSE)*[1]主表!$D$1*[1]升级!$AA$4*(1+VLOOKUP(F14,[1]主表!$A:$F,6,FALSE)),2) -> 3887.15 | D14: =ROUND(VLOOKUP(F14,[1]主表!$A:$B,2,FALSE)*[1]主表!$D$1*[1]升级!$X$4,2) -> 199.7 | E14: =ROUND(VLOOKUP(F14,[1]主表!$A:$B,2,FALSE)*[1]主表!$D$1*[1]升级!$U$4,2) -> 499.25 | F14: 90 | G14: 101 | H14: 1001;1006 | I14: 49190;3875 | J14: 1001 | K14: =ROUND(40*VLOOKUP(G14,[2]ResourceLevelConfig!$A:$H,3,FALSE)/4,0) -> 49190 | L14: 1006 | M14: =ROUND(100*VLOOKUP(G14,[2]ResourceLevelConfig!$A:$H,8,FALSE)/4,0) -> 3875 | N14: -1 | O14: 2
A15: 11 | B15: 1009 | C15: =ROUND(VLOOKUP(F15,[1]主表!$A:$B,2,FALSE)*[1]主表!$D$1*[1]升级!$AA$4*(1+VLOOKUP(F15,[1]主表!$A:$F,6,FALSE)),2) -> 6838.61 | D15: =ROUND(VLOOKUP(F15,[1]主表!$A:$B,2,FALSE)*[1]主表!$D$1*[1]升级!$X$4,2) -> 342.5 | E15: =ROUND(VLOOKUP(F15,[1]主表!$A:$B,2,FALSE)*[1]主表!$D$1*[1]升级!$U$4,2) -> 856.26 | F15: 100 | G15: 111 | H15: 1001;1006 | I15: 59950;4700 | J15: 1001 | K15: =ROUND(40*VLOOKUP(G15,[2]ResourceLevelConfig!$A:$H,3,FALSE)/4,0) -> 59950 | L15: 1006 | M15: =ROUND(100*VLOOKUP(G15,[2]ResourceLevelConfig!$A:$H,8,FALSE)/4,0) -> 4700 | N15: -1 | O15: 2
A16: 12 | B16: 1271 | C16: =ROUND(VLOOKUP(F16,[1]主表!$A:$B,2,FALSE)*[1]主表!$D$1*[1]升级!$AA$4*(1+VLOOKUP(F16,[1]主表!$A:$F,6,FALSE)),2) -> 8817.23 | D16: =ROUND(VLOOKUP(F16,[1]主表!$A:$B,2,FALSE)*[1]主表!$D$1*[1]升级!$X$4,2) -> 430.78 | E16: =ROUND(VLOOKUP(F16,[1]主表!$A:$B,2,FALSE)*[1]主表!$D$1*[1]升级!$U$4,2) -> 1076.94 | F16: 110 | G16: 121 | H16: 1001;1006 | I16: 73070;5700 | J16: 1001 | K16: =ROUND(40*VLOOKUP(G16,[2]ResourceLevelConfig!$A:$H,3,FALSE)/4,0) -> 73070 | L16: 1006 | M16: =ROUND(100*VLOOKUP(G16,[2]ResourceLevelConfig!$A:$H,8,FALSE)/4,0) -> 5700 | N16: 10 | O16: 2
A17: 13 | B17: 1601 | C17: =ROUND(VLOOKUP(F17,[1]主表!$A:$B,2,FALSE)*[1]主表!$D$1*[1]升级!$AA$4*(1+VLOOKUP(F17,[1]主表!$A:$F,6,FALSE)),2) -> 11361.49 | D17: =ROUND(VLOOKUP(F17,[1]主表!$A:$B,2,FALSE)*[1]主表!$D$1*[1]升级!$X$4,2) -> 541.8 | E17: =ROUND(VLOOKUP(F17,[1]主表!$A:$B,2,FALSE)*[1]主表!$D$1*[1]升级!$U$4,2) -> 1354.5 | F17: 120 | G17: 131 | H17: 1001;1006 | I17: 89070;6950 | J17: 1001 | K17: =ROUND(40*VLOOKUP(G17,[2]ResourceLevelConfig!$A:$H,3,FALSE)/4,0) -> 89070 | L17: 1006 | M17: =ROUND(100*VLOOKUP(G17,[2]ResourceLevelConfig!$A:$H,8,FALSE)/4,0) -> 6950 | N17: -1 | O17: 3
A18: 14 | B18: 2017 | C18: =ROUND(VLOOKUP(F18,[1]主表!$A:$B,2,FALSE)*[1]主表!$D$1*[1]升级!$AA$4*(1+VLOOKUP(F18,[1]主表!$A:$F,6,FALSE)),2) -> 19952.1 | D18: =ROUND(VLOOKUP(F18,[1]主表!$A:$B,2,FALSE)*[1]主表!$D$1*[1]升级!$X$4,2) -> 929.23 | E18: =ROUND(VLOOKUP(F18,[1]主表!$A:$B,2,FALSE)*[1]主表!$D$1*[1]升级!$U$4,2) -> 2323.08 | F18: 130 | G18: 141 | H18: 1001;1006 | I18: 108590;8500 | J18: 1001 | K18: =ROUND(40*VLOOKUP(G18,[2]ResourceLevelConfig!$A:$H,3,FALSE)/4,0) -> 108590 | L18: 1006 | M18: =ROUND(100*VLOOKUP(G18,[2]ResourceLevelConfig!$A:$H,8,FALSE)/4,0) -> 8500 | N18: -1 | O18: 3
A19: 15 | B19: 2541 | C19: =ROUND(VLOOKUP(F19,[1]主表!$A:$B,2,FALSE)*[1]主表!$D$1*[1]升级!$AA$4*(1+VLOOKUP(F19,[1]主表!$A:$F,6,FALSE)),2) -> 25680.65 | D19: =ROUND(VLOOKUP(F19,[1]主表!$A:$B,2,FALSE)*[1]主表!$D$1*[1]升级!$X$4,2) -> 1168.72 | E19: =ROUND(VLOOKUP(F19,[1]主表!$A:$B,2,FALSE)*[1]主表!$D$1*[1]升级!$U$4,2) -> 2921.81 | F19: 140 | G19: 151 | H19: 1001;1006 | I19: 132370;10375 | J19: 1001 | K19: =ROUND(40*VLOOKUP(G19,[2]ResourceLevelConfig!$A:$H,3,FALSE)/4,0) -> 132370 | L19: 1006 | M19: =ROUND(100*VLOOKUP(G19,[2]ResourceLevelConfig!$A:$H,8,FALSE)/4,0) -> 10375 | N19: -1 | O19: 3
A20: 16 | B20: 3202 | C20: =ROUND(VLOOKUP(F20,[1]主表!$A:$B,2,FALSE)*[1]主表!$D$1*[1]升级!$AA$4*(1+VLOOKUP(F20,[1]主表!$A:$F,6,FALSE)),2) -> 33036.72 | D20: =ROUND(VLOOKUP(F20,[1]主表!$A:$B,2,FALSE)*[1]主表!$D$1*[1]升级!$X$4,2) -> 1469.94 | E20: =ROUND(VLOOKUP(F20,[1]主表!$A:$B,2,FALSE)*[1]主表!$D$1*[1]升级!$U$4,2) -> 3674.84 | F20: 150 | G20: 161 | H20: 1001;1006 | I20: 161350;12650 | J20: 1001 | K20: =ROUND(40*VLOOKUP(G20,[2]ResourceLevelConfig!$A:$H,3,FALSE)/4,0) -> 161350 | L20: 1006 | M20: =ROUND(100*VLOOKUP(G20,[2]ResourceLevelConfig!$A:$H,8,FALSE)/4,0) -> 12650 | N20: -1 | O20: 3
A21: 17 | B21: 4035 | C21: =ROUND(VLOOKUP(F21,[1]主表!$A:$B,2,FALSE)*[1]主表!$D$1*[1]升级!$AA$4*(1+VLOOKUP(F21,[1]主表!$A:$F,6,FALSE)),2) -> 57925.53 | D21: =ROUND(VLOOKUP(F21,[1]主表!$A:$B,2,FALSE)*[1]主表!$D$1*[1]升级!$X$4,2) -> 2521.07 | E21: =ROUND(VLOOKUP(F21,[1]主表!$A:$B,2,FALSE)*[1]主表!$D$1*[1]升级!$U$4,2) -> 6302.67 | F21: 160 | G21: 171 | H21: 1001;1006 | I21: 196680;15425 | J21: 1001 | K21: =ROUND(40*VLOOKUP(G21,[2]ResourceLevelConfig!$A:$H,3,FALSE)/4,0) -> 196680 | L21: 1006 | M21: =ROUND(100*VLOOKUP(G21,[2]ResourceLevelConfig!$A:$H,8,FALSE)/4,0) -> 15425 | N21: -1 | O21: 3
A22: 18 | B22: 5084 | C22: =ROUND(VLOOKUP(F22,[1]主表!$A:$B,2,FALSE)*[1]主表!$D$1*[1]升级!$AA$4*(1+VLOOKUP(F22,[1]主表!$A:$F,6,FALSE)),2) -> 74445.33 | D22: =ROUND(VLOOKUP(F22,[1]主表!$A:$B,2,FALSE)*[1]主表!$D$1*[1]升级!$X$4,2) -> 3170.82 | E22: =ROUND(VLOOKUP(F22,[1]主表!$A:$B,2,FALSE)*[1]主表!$D$1*[1]升级!$U$4,2) -> 7927.05 | F22: 170 | G22: 181 | H22: 1001;1006 | I22: 239740;18800 | J22: 1001 | K22: =ROUND(40*VLOOKUP(G22,[2]ResourceLevelConfig!$A:$H,3,FALSE)/4,0) -> 239740 | L22: 1006 | M22: =ROUND(100*VLOOKUP(G22,[2]ResourceLevelConfig!$A:$H,8,FALSE)/4,0) -> 18800 | N22: 10 | O22: 3
A23: 19 | B23: 6406 | C23: =ROUND(VLOOKUP(F23,[1]主表!$A:$B,2,FALSE)*[1]主表!$D$1*[1]升级!$AA$4*(1+VLOOKUP(F23,[1]主表!$A:$F,6,FALSE)),2) -> 95632.74 | D23: =ROUND(VLOOKUP(F23,[1]主表!$A:$B,2,FALSE)*[1]主表!$D$1*[1]升级!$X$4,2) -> 3988.03 | E23: =ROUND(VLOOKUP(F23,[1]主表!$A:$B,2,FALSE)*[1]主表!$D$1*[1]升级!$U$4,2) -> 9970.08 | F23: 180 | G23: 191 | H23: 1001;1006 | I23: 292240;22925 | J23: 1001 | K23: =ROUND(40*VLOOKUP(G23,[2]ResourceLevelConfig!$A:$H,3,FALSE)/4,0) -> 292240 | L23: 1006 | M23: =ROUND(100*VLOOKUP(G23,[2]ResourceLevelConfig!$A:$H,8,FALSE)/4,0) -> 22925 | N23: -1 | O23: 4
A24: 20 | B24: 8072 | C24: =ROUND(VLOOKUP(F24,[1]主表!$A:$B,2,FALSE)*[1]主表!$D$1*[1]升级!$AA$4*(1+VLOOKUP(F24,[1]主表!$A:$F,6,FALSE)),2) -> 167449.61 | D24: =ROUND(VLOOKUP(F24,[1]主表!$A:$B,2,FALSE)*[1]主表!$D$1*[1]升级!$X$4,2) -> 6839.81 | E24: =ROUND(VLOOKUP(F24,[1]主表!$A:$B,2,FALSE)*[1]主表!$D$1*[1]升级!$U$4,2) -> 17099.53 | F24: 190 | G24: 201 | H24: 1001;1006 | I24: 356220;27925 | J24: 1001 | K24: =ROUND(40*VLOOKUP(G24,[2]ResourceLevelConfig!$A:$H,3,FALSE)/4,0) -> 356220 | L24: 1006 | M24: =ROUND(100*VLOOKUP(G24,[2]ResourceLevelConfig!$A:$H,8,FALSE)/4,0) -> 27925 | N24: -1 | O24: 4
A25: 21 | B25: 10171 | C25: =ROUND(VLOOKUP(F25,[1]主表!$A:$B,2,FALSE)*[1]主表!$D$1*[1]升级!$AA$4*(1+VLOOKUP(F25,[1]主表!$A:$F,6,FALSE)),2) -> 214921.93 | D25: =ROUND(VLOOKUP(F25,[1]主表!$A:$B,2,FALSE)*[1]主表!$D$1*[1]升级!$X$4,2) -> 8602.63 | E25: =ROUND(VLOOKUP(F25,[1]主表!$A:$B,2,FALSE)*[1]主表!$D$1*[1]升级!$U$4,2) -> 21506.58 | F25: 200 | G25: 211 | H25: 1001;1006 | I25: 434220;34050 | J25: 1001 | K25: =ROUND(40*VLOOKUP(G25,[2]ResourceLevelConfig!$A:$H,3,FALSE)/4,0) -> 434220 | L25: 1006 | M25: =ROUND(100*VLOOKUP(G25,[2]ResourceLevelConfig!$A:$H,8,FALSE)/4,0) -> 34050 | N25: -1 | O25: 4
A26: 22 | B26: 12815 | C26: =ROUND(VLOOKUP(F26,[1]主表!$A:$B,2,FALSE)*[1]主表!$D$1*[1]升级!$AA$4*(1+VLOOKUP(F26,[1]主表!$A:$F,6,FALSE)),2) -> 275741.53 | D26: =ROUND(VLOOKUP(F26,[1]主表!$A:$B,2,FALSE)*[1]主表!$D$1*[1]升级!$X$4,2) -> 10819.78 | E26: =ROUND(VLOOKUP(F26,[1]主表!$A:$B,2,FALSE)*[1]主表!$D$1*[1]升级!$U$4,2) -> 27049.45 | F26: 210 | G26: 221 | H26: 1001;1006 | I26: 529330;41500 | J26: 1001 | K26: =ROUND(40*VLOOKUP(G26,[2]ResourceLevelConfig!$A:$H,3,FALSE)/4,0) -> 529330 | L26: 1006 | M26: =ROUND(100*VLOOKUP(G26,[2]ResourceLevelConfig!$A:$H,8,FALSE)/4,0) -> 41500 | N26: -1 | O26: 4
A27: 23 | B27: 16147 | C27: =ROUND(VLOOKUP(F27,[1]主表!$A:$B,2,FALSE)*[1]主表!$D$1*[1]升级!$AA$4*(1+VLOOKUP(F27,[1]主表!$A:$F,6,FALSE)),2) -> 482229.6 | D27: =ROUND(VLOOKUP(F27,[1]主表!$A:$B,2,FALSE)*[1]主表!$D$1*[1]升级!$X$4,2) -> 18556.84 | E27: =ROUND(VLOOKUP(F27,[1]主表!$A:$B,2,FALSE)*[1]主表!$D$1*[1]升级!$U$4,2) -> 46392.1 | F27: 220 | G27: 231 | H27: 1001;1006 | I27: 645240;50600 | J27: 1001 | K27: =ROUND(40*VLOOKUP(G27,[2]ResourceLevelConfig!$A:$H,3,FALSE)/4,0) -> 645240 | L27: 1006 | M27: =ROUND(100*VLOOKUP(G27,[2]ResourceLevelConfig!$A:$H,8,FALSE)/4,0) -> 50600 | N27: -1 | O27: 4
A28: 24 | B28: 20345 | C28: =ROUND(VLOOKUP(F28,[1]主表!$A:$B,2,FALSE)*[1]主表!$D$1*[1]升级!$AA$4*(1+VLOOKUP(F28,[1]主表!$A:$F,6,FALSE)),2) -> 618222.9 | D28: =ROUND(VLOOKUP(F28,[1]主表!$A:$B,2,FALSE)*[1]主表!$D$1*[1]升级!$X$4,2) -> 23339.48 | E28: =ROUND(VLOOKUP(F28,[1]主表!$A:$B,2,FALSE)*[1]主表!$D$1*[1]升级!$U$4,2) -> 58348.69 | F28: 230 | G28: 241 | H28: 1001;1006 | I28: 786530;61675 | J28: 1001 | K28: =ROUND(40*VLOOKUP(G28,[2]ResourceLevelConfig!$A:$H,3,FALSE)/4,0) -> 786530 | L28: 1006 | M28: =ROUND(100*VLOOKUP(G28,[2]ResourceLevelConfig!$A:$H,8,FALSE)/4,0) -> 61675 | N28: 10 | O28: 4
A29: 25 | B29: 25635 | C29: =ROUND(VLOOKUP(F29,[1]主表!$A:$B,2,FALSE)*[1]主表!$D$1*[1]升级!$AA$4*(1+VLOOKUP(F29,[1]主表!$A:$F,6,FALSE)),2) -> 792283.31 | D29: =ROUND(VLOOKUP(F29,[1]主表!$A:$B,2,FALSE)*[1]主表!$D$1*[1]升级!$X$4,2) -> 29354.73 | E29: =ROUND(VLOOKUP(F29,[1]主表!$A:$B,2,FALSE)*[1]主表!$D$1*[1]升级!$U$4,2) -> 73386.84 | F29: 240 | G29: 251 | H29: 1001;1006 | I29: 958790;75150 | J29: 1001 | K29: =ROUND(40*VLOOKUP(G29,[2]ResourceLevelConfig!$A:$H,3,FALSE)/4,0) -> 958790 | L29: 1006 | M29: =ROUND(100*VLOOKUP(G29,[2]ResourceLevelConfig!$A:$H,8,FALSE)/4,0) -> 75150 | N29: -1 | O29: 5
A30: 26 | B30: 32300 | C30: =ROUND(VLOOKUP(F30,[1]主表!$A:$B,2,FALSE)*[1]主表!$D$1*[1]升级!$AA$4*(1+VLOOKUP(F30,[1]主表!$A:$F,6,FALSE)),2) -> 1384090.31 | D30: =ROUND(VLOOKUP(F30,[1]主表!$A:$B,2,FALSE)*[1]主表!$D$1*[1]升级!$X$4,2) -> 50345.86 | E30: =ROUND(VLOOKUP(F30,[1]主表!$A:$B,2,FALSE)*[1]主表!$D$1*[1]升级!$U$4,2) -> 125864.66 | F30: 250 | G30: 261 | H30: 1001;1006 | I30: 1168780;91600 | J30: 1001 | K30: =ROUND(40*VLOOKUP(G30,[2]ResourceLevelConfig!$A:$H,3,FALSE)/4,0) -> 1168780 | L30: 1006 | M30: =ROUND(100*VLOOKUP(G30,[2]ResourceLevelConfig!$A:$H,8,FALSE)/4,0) -> 91600 | N30: -1 | O30: 5
A31: 27 | B31: 40698 | C31: =ROUND(VLOOKUP(F31,[1]主表!$A:$B,2,FALSE)*[1]主表!$D$1*[1]升级!$AA$4*(1+VLOOKUP(F31,[1]主表!$A:$F,6,FALSE)),2) -> 1772577.1 | D31: =ROUND(VLOOKUP(F31,[1]主表!$A:$B,2,FALSE)*[1]主表!$D$1*[1]升级!$X$4,2) -> 63321.45 | E31: =ROUND(VLOOKUP(F31,[1]主表!$A:$B,2,FALSE)*[1]主表!$D$1*[1]升级!$U$4,2) -> 158303.63 | F31: 260 | G31: 271 | H31: 1001;1006 | I31: 1424740;111675 | J31: 1001 | K31: =ROUND(40*VLOOKUP(G31,[2]ResourceLevelConfig!$A:$H,3,FALSE)/4,0) -> 1424740 | L31: 1006 | M31: =ROUND(100*VLOOKUP(G31,[2]ResourceLevelConfig!$A:$H,8,FALSE)/4,0) -> 111675 | N31: -1 | O31: 5
A32: 28 | B32: 51279 | C32: =ROUND(VLOOKUP(F32,[1]主表!$A:$B,2,FALSE)*[1]主表!$D$1*[1]升级!$AA$4*(1+VLOOKUP(F32,[1]主表!$A:$F,6,FALSE)),2) -> 2269375.37 | D32: =ROUND(VLOOKUP(F32,[1]主表!$A:$B,2,FALSE)*[1]主表!$D$1*[1]升级!$X$4,2) -> 79641.22 | E32: =ROUND(VLOOKUP(F32,[1]主表!$A:$B,2,FALSE)*[1]主表!$D$1*[1]升级!$U$4,2) -> 199103.06 | F32: 270 | G32: 281 | H32: 1001;1006 | I32: 1736740;136175 | J32: 1001 | K32: =ROUND(40*VLOOKUP(G32,[2]ResourceLevelConfig!$A:$H,3,FALSE)/4,0) -> 1736740 | L32: 1006 | M32: =ROUND(100*VLOOKUP(G32,[2]ResourceLevelConfig!$A:$H,8,FALSE)/4,0) -> 136175 | N32: -1 | O32: 5
A33: 29 | B33: 64612 | C33: =ROUND(VLOOKUP(F33,[1]主表!$A:$B,2,FALSE)*[1]主表!$D$1*[1]升级!$AA$4*(1+VLOOKUP(F33,[1]主表!$A:$F,6,FALSE)),2) -> 3960695.72 | D33: =ROUND(VLOOKUP(F33,[1]主表!$A:$B,2,FALSE)*[1]主表!$D$1*[1]升级!$X$4,2) -> 136591.47 | E33: =ROUND(VLOOKUP(F33,[1]主表!$A:$B,2,FALSE)*[1]主表!$D$1*[1]升级!$U$4,2) -> 341478.67 | F33: 280 | G33: 291 | H33: 1001;1006 | I33: 2117080;166000 | J33: 1001 | K33: =ROUND(40*VLOOKUP(G33,[2]ResourceLevelConfig!$A:$H,3,FALSE)/4,0) -> 2117080 | L33: 1006 | M33: =ROUND(100*VLOOKUP(G33,[2]ResourceLevelConfig!$A:$H,8,FALSE)/4,0) -> 166000 | N33: -1 | O33: 5
A34: 30 | B34: 81411 | C34: =ROUND(VLOOKUP(F34,[1]主表!$A:$B,2,FALSE)*[1]主表!$D$1*[1]升级!$AA$4*(1+VLOOKUP(F34,[1]主表!$A:$F,6,FALSE)),2) -> 5067666.57 | D34: =ROUND(VLOOKUP(F34,[1]主表!$A:$B,2,FALSE)*[1]主表!$D$1*[1]升级!$X$4,2) -> 171795.05 | E34: =ROUND(VLOOKUP(F34,[1]主表!$A:$B,2,FALSE)*[1]主表!$D$1*[1]升级!$U$4,2) -> 429487.61 | F34: 290 | G34: 300 | H34: 1001;1006 | I34: 2530100;198425 | J34: 1001 | K34: =ROUND(40*VLOOKUP(G34,[2]ResourceLevelConfig!$A:$H,3,FALSE)/4,0) -> 2530100 | L34: 1006 | M34: =ROUND(100*VLOOKUP(G34,[2]ResourceLevelConfig!$A:$H,8,FALSE)/4,0) -> 198425 | N34: 10 | O34: 5
A35: 31 | B35: 102578 | C35: =ROUND(VLOOKUP(F35,[1]主表!$A:$B,2,FALSE)*[1]主表!$D$1*[1]升级!$AA$4*(1+VLOOKUP(F35,[1]主表!$A:$F,6,FALSE)),2) -> 6482148.2 | D35: =ROUND(VLOOKUP(F35,[1]主表!$A:$B,2,FALSE)*[1]主表!$D$1*[1]升级!$X$4,2) -> 216071.61 | E35: =ROUND(VLOOKUP(F35,[1]主表!$A:$B,2,FALSE)*[1]主表!$D$1*[1]升级!$U$4,2) -> 540179.02 | F35: 300 | G35: 310 | H35: =_xlfn.TEXTJOIN(";",1,J35,L35) -> 1001;1006 | I35: =_xlfn.TEXTJOIN(";",1,K35,M35) -> 9999999;999999 | J35: 1001 | K35: 9999999 | L35: 1006 | M35: 999999 | N35: -1 | O35: 6
